[Event "FIDE U16 Olympiad_boards_1-80"]
[Site "Eindhoven, Netherlands"]
[Date "2023.08.13"]
[Round "1.14"]
[White "Smirnov, Mark"]
[Black "De Winter, Arthur"]
[Result "0-1"]
[TimeControl "2700+10"]
[WhiteElo "1936"]
[BlackElo "2360"]

1. e4 {[%clk 00:45:09]} {[%emt 00:00:10]} c5 {[%clk 00:45:16]} {[%emt
00:00:04]} 2. Nf3 {[%clk 00:45:17]} {[%emt 00:00:03]} d6 {[%clk 00:45:11]}
{[%emt 00:00:15]} 3. d4 {[%clk 00:45:25]} {[%emt 00:00:02]} cxd4 {[%clk
00:45:20]} {[%emt 00:00:02]} 4. Nxd4 {[%clk 00:45:34]} {[%emt 00:00:01]} Nf6
{[%clk 00:45:29]} 5. Nc3 {[%clk 00:45:43]} {[%emt 00:00:01]} a6 {[%clk
00:45:38]} 6. Bg5 {[%clk 00:45:52]} {[%emt 00:00:01]} Nbd7 {[%clk 00:45:36]}
{[%emt 00:00:11]} 7. Bc4 {[%clk 00:45:58]} {[%emt 00:00:03]} Qb6 {[%clk
00:45:34]} {[%emt 00:00:12]} 8. Bb3 {[%clk 00:45:07]} {[%emt 00:01:02]} e6
{[%clk 00:45:42]} {[%emt 00:00:02]} 9. Qd2 {[%clk 00:43:22]} {[%emt 00:01:55]}
Be7 {[%clk 00:45:49]} {[%emt 00:00:04]} 10. O-O-O {[%clk 00:42:32]} {[%emt
00:00:58]} Nc5 {[%clk 00:45:30]} {[%emt 00:00:29]} 11. Rhe1 {[%clk 00:40:56]}
{[%emt 00:01:46]} h6 {[%clk 00:39:35]} {[%emt 00:06:07]} 12. Bh4 {[%clk
00:39:03]} {[%emt 00:02:02]} O-O {[%clk 00:39:03]} {[%emt 00:00:42]} 13. Qe3
{[%clk 00:34:05]} {[%emt 00:05:07]} Qc7 {[%clk 00:36:47]} {[%emt 00:02:26]} 14.
f4 {[%clk 00:16:32]} {[%emt 00:17:44]} b5 {[%clk 00:35:32]} {[%emt 00:01:24]}
15. e5 {[%clk 00:09:12]} {[%emt 00:07:30]} dxe5 {[%clk 00:33:59]} {[%emt
00:01:44]} 16. fxe5 {[%clk 00:09:16]} {[%emt 00:00:06]} Ng4 {[%clk 00:33:59]}
{[%emt 00:00:09]} 17. Qg3 {[%clk 00:09:14]} {[%emt 00:00:12]} Bxh4 {[%clk
00:34:03]} {[%emt 00:00:07]} 18. Qxh4 {[%clk 00:09:23]} Nxe5 {[%clk 00:34:10]}
{[%emt 00:00:03]} 19. Qg3 {[%clk 00:09:28]} {[%emt 00:00:05]} f6 {[%clk
00:33:56]} {[%emt 00:00:23]} 20. Ne4 {[%clk 00:07:55]} {[%emt 00:01:43]} Nxb3+
{[%clk 00:31:52]} {[%emt 00:02:14]} 21. axb3 {[%clk 00:07:28]} {[%emt
00:00:38]} Kh8 {[%clk 00:30:59]} {[%emt 00:01:02]} 22. Nf3 {[%clk 00:06:08]}
{[%emt 00:01:30]} Bb7 {[%clk 00:29:12]} {[%emt 00:01:57]} 23. Nxe5 {[%clk
00:06:01]} {[%emt 00:00:18]} fxe5 {[%clk 00:28:49]} {[%emt 00:00:33]} 24. Nd6
{[%clk 00:05:09]} {[%emt 00:01:00]} Bd5 {[%clk 00:28:07]} {[%emt 00:00:54]} 25.
Qxe5 {[%clk 00:04:43]} {[%emt 00:00:35]} Bxb3 {[%clk 00:23:18]} {[%emt
00:04:59]} 26. Rd2 {[%clk 00:03:18]} {[%emt 00:01:36]} Bd5 {[%clk 00:22:40]}
{[%emt 00:00:47]} 27. Nf5 {[%clk 00:03:15]} {[%emt 00:00:14]} Qxe5 {[%clk
00:21:21]} {[%emt 00:01:29]} 28. Rxe5 {[%clk 00:03:24]} {[%emt 00:00:01]} Bxg2
{[%clk 00:20:55]} {[%emt 00:00:36]} 29. Ne3 {[%clk 00:02:46]} {[%emt 00:00:45]}
Bh3 {[%clk 00:20:32]} {[%emt 00:00:35]} 30. b4 {[%clk 00:01:03]} {[%emt
00:01:54]} Rf4 {[%clk 00:16:02]} {[%emt 00:04:39]} 31. c3 {[%clk 00:00:56]}
{[%emt 00:00:18]} Bf5 {[%clk 00:15:53]} {[%emt 00:00:18]} 32. Rd4 {[%clk
00:00:20]} {[%emt 00:00:46]} Rf2 {[%clk 00:15:23]} {[%emt 00:00:40]} 33. Rd2
{[%clk 00:00:15]} {[%emt 00:00:15]} Rxd2 {[%clk 00:14:43]} {[%emt 00:00:51]} 34.
Kxd2 {[%clk 00:00:25]} {[%emt 00:00:01]} Rd8+ {[%clk 00:14:33]} {[%emt
00:00:18]} 35. Ke2 {[%clk 00:00:18]} {[%emt 00:00:17]} Bd3+ {[%clk 00:14:32]}
{[%emt 00:00:11]} 36. Kf2 {[%clk 00:00:20]} {[%emt 00:00:07]} Rd6 {[%clk
00:14:09]} {[%emt 00:00:35]} 37. h4 {[%clk 00:00:16]} {[%emt 00:00:15]} Kg8
{[%clk 00:14:00]} {[%emt 00:00:18]} 38. Ng2 {[%clk 00:00:20]} {[%emt 00:00:07]}
Kf7 {[%clk 00:13:37]} {[%emt 00:00:32]} 39. Nf4 {[%clk 00:00:19]} {[%emt
00:00:11]} Bf5 {[%clk 00:11:31]} {[%emt 00:02:15]} 40. Ke3 {[%clk 00:00:16]}
{[%emt 00:00:14]} Kf6 {[%clk 00:09:16]} {[%emt 00:02:24]} 41. Rc5 {[%clk
00:00:22]} {[%emt 00:00:04]} g5 {[%clk 00:07:15]} {[%emt 00:02:12]} 42. hxg5+
{[%clk 00:00:31]} {[%emt 00:00:01]} hxg5 {[%clk 00:07:17]} {[%emt 00:00:08]} 43.
Ne2 {[%emt 00:00:10]} e5 {[%clk 00:06:23]} {[%emt 00:00:58]} 44. Ng3 {[%clk
00:00:35]} {[%emt 00:00:11]} Rd3+ {[%clk 00:06:20]} {[%emt 00:00:13]} 45. Kf2
{[%clk 00:00:45]} g4 {[%clk 00:06:21]} {[%emt 00:00:09]} 46. Nh5+ {[%clk
00:00:24]} {[%emt 00:00:31]} Kg5 {[%clk 00:05:41]} {[%emt 00:00:50]} 47. Ng3
{[%clk 00:00:30]} {[%emt 00:00:04]} Rf3+ {[%clk 00:05:30]} {[%emt 00:00:21]} 48.
Kg2 {[%clk 00:00:39]} Kh4 {[%clk 00:05:27]} {[%emt 00:00:13]} 49. Ne2 {[%clk
00:00:14]} {[%emt 00:00:35]} Bd3 {[%clk 00:04:45]} {[%emt 00:00:52]} 50. Ng1
{[%clk 00:00:14]} {[%emt 00:00:10]} Bf1+ {[%clk 00:04:42]} {[%emt 00:00:13]} 51.
Kh1 {[%clk 00:00:23]} {[%emt 00:00:01]} Rf2 {[%clk 00:04:43]} {[%emt 00:00:08]}
0-1

[Event "FIDE U16 Olympiad_boards_1-80"]
[Site "Eindhoven, Netherlands"]
[Date "2023.08.13"]
[Round "1.15"]
[White "Kumar, Prajit Sai"]
[Black "Kuandykuly, Danis"]
[Result "1-0"]
[TimeControl "2700+10"]
[WhiteElo "2160"]
[BlackElo "1738"]

1. d4 {[%clk 00:45:19]} Nf6 {[%clk 00:45:17]} {[%emt 00:00:04]} 2. Nf3 {[%clk
00:45:27]} {[%emt 00:00:02]} e6 {[%clk 00:45:24]} {[%emt 00:00:03]} 3. Bf4
{[%clk 00:45:31]} {[%emt 00:00:06]} c5 {[%clk 00:45:29]} {[%emt 00:00:05]} 4.
c3 {[%clk 00:45:39]} {[%emt 00:00:02]} Qb6 {[%clk 00:43:30]} {[%emt 00:02:09]}
5. Qb3 {[%clk 00:45:47]} {[%emt 00:00:02]} Nc6 {[%clk 00:41:37]} {[%emt
00:02:03]} 6. e3 {[%clk 00:45:34]} {[%emt 00:00:22]} d5 {[%clk 00:39:07]}
{[%emt 00:02:41]} 7. Nbd2 {[%clk 00:45:16]} {[%emt 00:00:27]} Qd8 {[%clk
00:28:21]} {[%emt 00:10:57]} 8. Bb5 {[%clk 00:41:07]} {[%emt 00:04:18]} Bd6
{[%clk 00:25:02]} {[%emt 00:03:30]} 9. Bxc6+ {[%clk 00:39:16]} {[%emt
00:02:01]} bxc6 {[%clk 00:25:09]} {[%emt 00:00:03]} 10. Bxd6 {[%clk 00:39:24]}
{[%emt 00:00:01]} Qxd6 {[%clk 00:25:14]} {[%emt 00:00:06]} 11. Qa3 {[%clk
00:39:30]} {[%emt 00:00:04]} Nd7 {[%clk 00:17:39]} {[%emt 00:07:45]} 12. Nb3
{[%clk 00:39:22]} {[%emt 00:00:17]} O-O {[%clk 00:17:21]} {[%emt 00:00:29]} 13.
Nxc5 {[%clk 00:38:18]} {[%emt 00:01:14]} a5 {[%clk 00:17:14]} {[%emt 00:00:17]}
14. O-O {[%clk 00:37:30]} {[%emt 00:00:57]} f6 {[%clk 00:15:15]} {[%emt
00:02:09]} 15. Nxd7 {[%clk 00:36:38]} {[%emt 00:01:02]} Qxa3 {[%clk 00:14:26]}
{[%emt 00:00:59]} 16. Nxf6+ {[%clk 00:36:03]} {[%emt 00:00:45]} gxf6 {[%clk
00:14:33]} {[%emt 00:00:03]} 17. bxa3 {[%clk 00:36:12]} Ba6 {[%clk 00:14:07]}
{[%emt 00:00:36]} 18. Rfb1 {[%clk 00:33:37]} {[%emt 00:02:45]} Rfb8 {[%clk
00:13:33]} {[%emt 00:00:45]} 19. Ne1 {[%clk 00:31:10]} {[%emt 00:02:36]} Kf7
{[%clk 00:11:42]} {[%emt 00:02:01]} 20. f3 {[%clk 00:29:50]} {[%emt 00:01:30]}
c5 {[%clk 00:11:20]} {[%emt 00:00:33]} 21. Kf2 {[%clk 00:28:12]} {[%emt
00:01:46]} cxd4 {[%clk 00:11:10]} {[%emt 00:00:21]} 22. cxd4 {[%clk 00:27:45]}
{[%emt 00:00:37]} Ke7 {[%clk 00:09:12]} {[%emt 00:02:08]} 23. e4 {[%clk
00:25:38]} {[%emt 00:02:17]} Kd6 {[%clk 00:07:18]} {[%emt 00:02:04]} 24. Ke3
{[%clk 00:25:00]} {[%emt 00:00:48]} h5 {[%clk 00:05:53]} {[%emt 00:01:35]} 25.
Nd3 {[%clk 00:24:00]} {[%emt 00:01:09]} Bxd3 {[%clk 00:05:39]} {[%emt
00:00:25]} 26. Kxd3 {[%clk 00:24:09]} {[%emt 00:00:01]} e5 {[%clk 00:03:52]}
{[%emt 00:01:58]} 27. a4 {[%clk 00:23:18]} {[%emt 00:01:01]} Rb4 {[%clk
00:02:26]} {[%emt 00:01:36]} 28. dxe5+ {[%clk 00:23:25]} {[%emt 00:00:02]} Kxe5
{[%clk 00:01:52]} {[%emt 00:00:44]} 29. exd5 {[%clk 00:21:53]} {[%emt
00:01:41]} Kxd5 {[%clk 00:01:33]} {[%emt 00:00:30]} 30. Rxb4 {[%clk 00:15:24]}
{[%emt 00:06:39]} axb4 {[%clk 00:01:41]} {[%emt 00:00:03]} 31. Kc2 {[%clk
00:15:33]} Kc4 {[%clk 00:01:50]} {[%emt 00:00:01]} 32. Re1 {[%clk 00:15:33]}
{[%emt 00:00:10]} Rxa4 {[%clk 00:01:56]} {[%emt 00:00:05]} 33. Kb2 {[%clk
00:15:42]} Ra8 {[%clk 00:01:46]} {[%emt 00:00:20]} 34. Re4+ {[%clk 00:15:52]}
Kc5 {[%clk 00:01:49]} {[%emt 00:00:07]} 35. Kb3 {[%clk 00:15:28]} {[%emt
00:00:34]} Ra3+ {[%clk 00:01:49]} {[%emt 00:00:10]} 36. Kb2 {[%clk 00:15:37]}
Ra8 {[%clk 00:01:58]} {[%emt 00:00:01]} 37. Rh4 {[%clk 00:14:06]} {[%emt
00:01:41]} Re8 {[%clk 00:01:36]} {[%emt 00:00:33]} 38. Rxh5+ {[%clk 00:14:08]}
{[%emt 00:00:07]} Kc4 {[%clk 00:01:00]} {[%emt 00:00:45]} 39. Rh4+ {[%clk
00:14:11]} {[%emt 00:00:07]} Kb5 {[%clk 00:01:08]} {[%emt 00:00:02]} 40. Re4
{[%clk 00:14:02]} {[%emt 00:00:19]} Rd8 {[%clk 00:01:11]} {[%emt 00:00:08]} 41.
Kc2 {[%clk 00:13:36]} {[%emt 00:00:36]} Ka4 {[%clk 00:01:17]} {[%emt 00:00:04]}
42. Re6 {[%clk 00:13:18]} {[%emt 00:00:27]} Rh8 {[%clk 00:01:05]} {[%emt
00:00:23]} 43. Rxf6 {[%clk 00:11:42]} {[%emt 00:01:45]} Rxh2 {[%clk 00:01:13]}
{[%emt 00:00:02]} 44. Ra6+ {[%clk 00:11:52]} {[%emt 00:00:01]} Kb5 {[%clk
00:01:22]} 45. Rg6 {[%emt 00:00:03]} Ka4 {[%clk 00:01:22]} {[%emt 00:00:08]} 46.
Kb2 {[%clk 00:12:06]} {[%emt 00:00:04]} Rh8 {[%clk 00:01:29]} {[%emt 00:00:03]}
47. Ra6+ {[%clk 00:11:50]} {[%emt 00:00:26]} Kb5 {[%clk 00:01:38]} 48. Re6
{[%clk 00:11:29]} {[%emt 00:00:30]} Ka4 {[%clk 00:01:32]} {[%emt 00:00:17]} 49.
Re4 {[%clk 00:10:59]} {[%emt 00:00:40]} Rf8 {[%clk 00:01:36]} {[%emt 00:00:07]}
50. a3 {[%clk 00:10:51]} {[%emt 00:00:18]} Kb5 {[%clk 00:00:38]} {[%emt
00:01:08]} 51. Rxb4+ {[%clk 00:10:56]} {[%emt 00:00:04]} Kc5 {[%clk 00:00:47]}
52. Rg4 {[%clk 00:10:53]} {[%emt 00:00:13]} Re8 {[%clk 00:00:54]} {[%emt
00:00:03]} 53. Re4 {[%clk 00:11:01]} {[%emt 00:00:03]} Rf8 {[%clk 00:01:03]}
{[%emt 00:00:01]} 54. Kc3 {[%clk 00:11:09]} {[%emt 00:00:01]} Ra8 {[%clk
00:01:08]} {[%emt 00:00:05]} 55. a4 {[%clk 00:11:18]} {[%emt 00:00:02]} Rd8
{[%clk 00:01:15]} {[%emt 00:00:01]} 56. Rc4+ {[%clk 00:11:24]} {[%emt
00:00:05]} Kb6 {[%clk 00:01:23]} {[%emt 00:00:03]} 57. g4 {[%clk 00:11:22]}
{[%emt 00:00:11]} Rg8 {[%clk 00:01:30]} {[%emt 00:00:03]} 58. Kb4 {[%clk
00:11:27]} {[%emt 00:00:05]} Rg5 {[%clk 00:01:39]} {[%emt 00:00:02]} 59. Rf4
{[%clk 00:11:35]} {[%emt 00:00:02]} Rg6 {[%clk 00:01:46]} {[%emt 00:00:03]} 60.
Rf5 {[%clk 00:11:41]} {[%emt 00:00:03]} Ka6 {[%clk 00:01:54]} {[%emt 00:00:03]}
61. g5 {[%clk 00:11:50]} Rb6+ {[%clk 00:02:02]} {[%emt 00:00:02]} 62. Rb5
{[%clk 00:11:56]} {[%emt 00:00:04]} Rd6 {[%emt 00:00:11]} 63. Rf5 {[%clk
00:11:57]} Rd4+ {[%clk 00:02:17]} {[%emt 00:00:03]} 64. Kb3 {[%clk 00:11:45]}
{[%emt 00:00:22]} Rd6 {[%clk 00:02:13]} {[%emt 00:00:14]} 65. Rf6 {[%clk
00:11:53]} {[%emt 00:00:02]} Ka5 {[%clk 00:02:15]} {[%emt 00:00:08]} 66. f4
{[%clk 00:11:39]} {[%emt 00:00:24]} Rd1 {[%clk 00:01:55]} {[%emt 00:00:30]} 67.
Rf5+ {[%clk 00:11:43]} {[%emt 00:00:05]} Ka6 {[%clk 00:02:04]} {[%emt
00:00:01]} 68. g6 {[%clk 00:11:50]} {[%emt 00:00:04]} Rd7 {[%clk 00:02:10]}
{[%emt 00:00:04]} 69. Rf6+ {[%clk 00:11:55]} {[%emt 00:00:05]} Ka5 {[%clk
00:02:19]} {[%emt 00:00:02]} 70. Rf7 {[%clk 00:12:01]} {[%emt 00:00:03]} Rd6
{[%clk 00:02:03]} {[%emt 00:00:25]} 71. g7 {[%clk 00:12:06]} {[%emt 00:00:04]}
Rb6+ {[%clk 00:02:07]} {[%emt 00:00:08]} 72. Ka2 {[%clk 00:12:09]} {[%emt
00:00:07]} Rg6 {[%clk 00:02:14]} {[%emt 00:00:03]} 73. Rf5+ {[%clk 00:12:14]}
{[%emt 00:00:05]} Kxa4 {[%clk 00:02:20]} {[%emt 00:00:04]} 74. Rg5 {[%clk
00:12:23]} 1-0

[Event "FIDE U16 Olympiad_boards_1-80"]
[Site "Eindhoven, Netherlands"]
[Date "2023.08.13"]
[Round "1.16"]
[White "Kholyavko, Mariya"]
[Black "Verheij, Dana"]
[Result "1-0"]
[TimeControl "2700+10"]
[WhiteElo "1757"]
[BlackElo "1829"]

1. e4 {[%clk 00:45:18]} {[%emt 00:00:01]} c5 {[%clk 00:45:18]} {[%emt
00:00:02]} 2. Nf3 {[%clk 00:45:26]} {[%emt 00:00:02]} d6 {[%clk 00:45:26]}
{[%emt 00:00:02]} 3. d4 {[%clk 00:45:34]} {[%emt 00:00:02]} cxd4 {[%clk
00:45:35]} {[%emt 00:00:02]} 4. Nxd4 {[%clk 00:45:41]} {[%emt 00:00:03]} Nf6
{[%clk 00:45:42]} {[%emt 00:00:02]} 5. Nc3 {[%clk 00:45:48]} {[%emt 00:00:03]}
a6 {[%clk 00:45:46]} {[%emt 00:00:06]} 6. Bg5 {[%clk 00:45:55]} {[%emt
00:00:04]} e6 {[%clk 00:45:52]} {[%emt 00:00:03]} 7. f4 {[%clk 00:46:03]}
{[%emt 00:00:03]} Be7 {[%clk 00:45:48]} {[%emt 00:00:14]} 8. Qf3 {[%clk
00:46:10]} {[%emt 00:00:03]} Qc7 {[%clk 00:45:49]} {[%emt 00:00:09]} 9. O-O-O
{[%clk 00:46:09]} {[%emt 00:00:11]} Nbd7 {[%clk 00:45:45]} {[%emt 00:00:13]} 10.
g4 {[%clk 00:45:43]} {[%emt 00:00:36]} h6 {[%clk 00:45:47]} {[%emt 00:00:08]}
11. Bxf6 {[%clk 00:45:48]} {[%emt 00:00:05]} Bxf6 {[%clk 00:45:44]} {[%emt
00:00:14]} 12. h4 {[%clk 00:45:26]} {[%emt 00:00:32]} b5 {[%clk 00:44:07]}
{[%emt 00:01:46]} 13. g5 {[%clk 00:44:40]} {[%emt 00:00:57]} Bxd4 {[%clk
00:43:34]} {[%emt 00:00:43]} 14. Rxd4 {[%clk 00:44:42]} {[%emt 00:00:07]} Qc5
{[%clk 00:42:26]} {[%emt 00:01:17]} 15. Rd2 {[%clk 00:43:54]} {[%emt 00:00:59]}
Bb7 {[%clk 00:41:33]} {[%emt 00:01:03]} 16. Bh3 {[%clk 00:42:22]} {[%emt
00:01:42]} Rc8 {[%clk 00:40:03]} {[%emt 00:01:39]} 17. g6 {[%clk 00:40:17]}
{[%emt 00:02:16]} Nf6 {[%clk 00:36:05]} {[%emt 00:04:08]} 18. Re1 {[%clk
00:34:38]} {[%emt 00:05:49]} b4 {[%clk 00:35:40]} {[%emt 00:00:35]} 19. Na4
{[%clk 00:34:12]} {[%emt 00:00:36]} Qc6 {[%clk 00:35:28]} {[%emt 00:00:22]} 20.
Qb3 {[%clk 00:32:48]} {[%emt 00:01:34]} Nxe4 {[%clk 00:30:48]} {[%emt
00:04:51]} 21. gxf7+ {[%clk 00:32:41]} {[%emt 00:00:17]} Kf8 {[%clk 00:30:21]}
{[%emt 00:00:32]} 22. Qxe6 {[%clk 00:32:14]} {[%emt 00:00:41]} d5 {[%clk
00:26:34]} {[%emt 00:03:58]} 23. Qxc6 {[%clk 00:23:44]} {[%emt 00:08:40]} Rxc6
{[%clk 00:24:41]} {[%emt 00:02:03]} 24. Rxe4 {[%clk 00:23:46]} {[%emt
00:00:07]} dxe4 {[%clk 00:24:03]} {[%emt 00:00:48]} 25. Rd8+ {[%clk 00:23:53]}
{[%emt 00:00:03]} Kxf7 {[%clk 00:24:10]} {[%emt 00:00:04]} 26. Rxh8 {[%clk
00:23:58]} {[%emt 00:00:04]} Rd6 {[%clk 00:22:02]} {[%emt 00:02:18]} 27. Nc5
{[%clk 00:21:42]} {[%emt 00:02:25]} Bc6 {[%clk 00:21:33]} {[%emt 00:00:37]} 28.
Bg4 {[%clk 00:21:32]} {[%emt 00:00:24]} e3 {[%clk 00:20:21]} {[%emt 00:01:21]}
29. Nd3 {[%clk 00:21:22]} {[%emt 00:00:20]} Bb5 {[%clk 00:17:53]} {[%emt
00:02:38]} 30. Be2 {[%clk 00:21:11]} {[%emt 00:00:21]} Be8 {[%clk 00:16:19]}
{[%emt 00:01:45]} 31. Ne5+ {[%clk 00:20:14]} {[%emt 00:01:06]} Ke7 {[%clk
00:16:21]} {[%emt 00:00:08]} 32. Nc4 {[%clk 00:20:03]} {[%emt 00:00:21]} Re6
{[%clk 00:15:50]} {[%emt 00:00:40]} 33. f5 {[%clk 00:20:08]} {[%emt 00:00:11]}
Rc6 {[%clk 00:14:24]} {[%emt 00:01:31]} 34. Nxe3 {[%clk 00:20:06]} {[%emt
00:00:12]} Rc5 {[%clk 00:13:50]} {[%emt 00:00:43]} 35. Kd2 {[%clk 00:19:39]}
{[%emt 00:00:38]} a5 {[%clk 00:13:37]} {[%emt 00:00:23]} 36. c4 {[%clk
00:19:21]} {[%emt 00:00:28]} Bd7 {[%clk 00:12:59]} {[%emt 00:00:47]} 37. Nd5+
{[%clk 00:19:08]} {[%emt 00:00:24]} Kd6 {[%clk 00:12:43]} {[%emt 00:00:26]} 38.
Rd8 {[%clk 00:18:28]} {[%emt 00:00:49]} Rc6 {[%clk 00:10:39]} {[%emt 00:02:15]}
39. Kd3 {[%clk 00:16:44]} {[%emt 00:01:54]} a4 {[%clk 00:09:45]} {[%emt
00:01:05]} 40. Kd4 {[%clk 00:16:38]} {[%emt 00:00:15]} b3 {[%clk 00:08:16]}
{[%emt 00:01:38]} 41. axb3 {[%clk 00:16:45]} {[%emt 00:00:04]} Rc8 {[%clk
00:06:18]} {[%emt 00:02:08]} 42. Rxd7+ {[%clk 00:16:25]} {[%emt 00:00:30]} Kc6
{[%clk 00:05:56]} {[%emt 00:00:32]} 43. Ne7+ {[%clk 00:16:17]} {[%emt
00:00:19]} Kxd7 {[%clk 00:06:03]} {[%emt 00:00:02]} 44. Nxc8 {[%clk 00:16:24]}
{[%emt 00:00:03]} Kxc8 {[%clk 00:06:12]} {[%emt 00:00:01]} 45. bxa4 {[%clk
00:16:32]} {[%emt 00:00:02]} 1-0

[Event "FIDE U16 Olympiad_boards_1-80"]
[Site "Eindhoven, Netherlands"]
[Date "2023.08.13"]
[Round "1.17"]
[White "Assylov, Miras"]
[Black "Gaal, Zsoka"]
[Result "1-0"]
[TimeControl "2700+10"]
[WhiteElo "2047"]
[BlackElo "2254"]

1. e4 {[%clk 00:45:13]} {[%emt 00:00:06]} c6 {[%clk 00:45:16]} {[%emt
00:00:04]} 2. d4 {[%clk 00:45:20]} {[%emt 00:00:03]} d5 {[%clk 00:45:23]}
{[%emt 00:00:03]} 3. e5 {[%clk 00:45:24]} {[%emt 00:00:06]} Bf5 {[%clk
00:45:30]} {[%emt 00:00:04]} 4. Nf3 {[%clk 00:45:11]} {[%emt 00:00:23]} e6
{[%clk 00:45:28]} {[%emt 00:00:12]} 5. Be2 {[%clk 00:45:18]} {[%emt 00:00:03]}
Ne7 {[%clk 00:45:22]} {[%emt 00:00:16]} 6. c3 {[%clk 00:45:15]} {[%emt
00:00:13]} h6 {[%clk 00:43:07]} {[%emt 00:02:25]} 7. O-O {[%clk 00:44:36]}
{[%emt 00:00:49]} c5 {[%clk 00:41:23]} {[%emt 00:01:54]} 8. dxc5 {[%clk
00:40:00]} {[%emt 00:04:46]} Nec6 {[%clk 00:41:27]} {[%emt 00:00:06]} 9. b4
{[%clk 00:39:10]} {[%emt 00:01:00]} Nd7 {[%clk 00:37:40]} {[%emt 00:03:57]} 10.
Bb5 {[%clk 00:34:10]} {[%emt 00:05:10]} Bg4 {[%clk 00:32:55]} {[%emt 00:04:55]}
11. Re1 {[%clk 00:27:40]} {[%emt 00:06:39]} g5 {[%clk 00:31:13]} {[%emt
00:01:52]} 12. Nbd2 {[%clk 00:22:47]} {[%emt 00:05:03]} Bg7 {[%clk 00:30:43]}
{[%emt 00:00:41]} 13. Qa4 {[%clk 00:22:52]} {[%emt 00:00:05]} Qc7 {[%clk
00:29:11]} {[%emt 00:01:42]} 14. Nd4 {[%clk 00:18:44]} {[%emt 00:04:18]} Ncxe5
{[%clk 00:26:45]} {[%emt 00:02:35]} 15. Nf1 {[%clk 00:14:46]} {[%emt 00:04:09]}
O-O {[%clk 00:19:23]} {[%emt 00:07:31]} 16. Ng3 {[%clk 00:14:50]} {[%emt
00:00:05]} Nf6 {[%clk 00:16:05]} {[%emt 00:03:29]} 17. Bf1 {[%clk 00:11:56]}
{[%emt 00:03:05]} a6 {[%clk 00:14:47]} {[%emt 00:01:27]} 18. Be3 {[%clk
00:09:31]} {[%emt 00:02:35]} Nh5 {[%clk 00:14:05]} {[%emt 00:00:52]} 19. Rac1
{[%clk 00:06:47]} {[%emt 00:02:54]} Nxg3 {[%clk 00:12:23]} {[%emt 00:01:53]} 20.
hxg3 {[%clk 00:06:55]} {[%emt 00:00:01]} Nc4 {[%clk 00:11:56]} {[%emt
00:00:37]} 21. Qc2 {[%clk 00:05:01]} {[%emt 00:02:04]} Bh5 {[%clk 00:09:16]}
{[%emt 00:02:50]} 22. Bd3 {[%clk 00:04:30]} {[%emt 00:00:41]} Ne5 {[%clk
00:09:05]} {[%emt 00:00:21]} 23. Bf1 {[%clk 00:03:35]} {[%emt 00:01:06]} Bg6
{[%clk 00:09:12]} {[%emt 00:00:03]} 24. Qd1 {[%clk 00:02:46]} {[%emt 00:00:59]}
Rae8 {[%clk 00:07:39]} {[%emt 00:01:42]} 25. f3 {[%clk 00:02:37]} {[%emt
00:00:19]} Nc4 {[%clk 00:07:02]} {[%emt 00:00:47]} 26. Bf2 {[%clk 00:02:37]}
{[%emt 00:00:10]} Rd8 {[%clk 00:05:00]} {[%emt 00:02:12]} 27. g4 {[%clk
00:02:00]} {[%emt 00:00:47]} h5 {[%clk 00:03:42]} {[%emt 00:01:28]} 28. gxh5
{[%clk 00:01:41]} {[%emt 00:00:29]} Bxh5 {[%clk 00:03:49]} {[%emt 00:00:03]} 29.
Bxc4 {[%clk 00:00:51]} {[%emt 00:01:00]} dxc4 {[%clk 00:03:58]} {[%emt
00:00:02]} 30. Qe2 {[%clk 00:01:00]} {[%emt 00:00:01]} Bg6 {[%clk 00:01:20]}
{[%emt 00:02:47]} 31. Qxc4 {[%clk 00:00:46]} {[%emt 00:00:24]} e5 {[%clk
00:01:18]} {[%emt 00:00:13]} 32. Nb3 {[%clk 00:00:35]} {[%emt 00:00:20]} Rd3
{[%clk 00:00:59]} {[%emt 00:00:30]} 33. Qg4 {[%clk 00:00:31]} {[%emt 00:00:14]}
Qd8 {[%clk 00:00:52]} {[%emt 00:00:16]} 34. Be3 {[%clk 00:00:29]} {[%emt
00:00:12]} Bf6 {[%clk 00:00:57]} {[%emt 00:00:06]} 35. Na5 {[%clk 00:00:32]}
{[%emt 00:00:07]} e4 {[%clk 00:00:28]} {[%emt 00:00:39]} 36. fxe4 {[%clk
00:00:14]} {[%emt 00:00:28]} Bxc3 {[%clk 00:00:36]} {[%emt 00:00:02]} 37. Re2
{[%clk 00:00:15]} {[%emt 00:00:09]} Rxe3 {[%clk 00:00:28]} {[%emt 00:00:18]} 38.
Rxe3 {[%clk 00:00:24]} {[%emt 00:00:01]} Qd4 {[%clk 00:00:18]} {[%emt
00:00:19]} 39. Rcxc3 {[%clk 00:00:28]} {[%emt 00:00:06]} Kg7 {[%clk 00:00:16]}
{[%emt 00:00:12]} 40. Qe2 {[%clk 00:00:17]} {[%emt 00:00:21]} Qxb4 {[%clk
00:00:21]} {[%emt 00:00:06]} 41. Nb3 {[%clk 00:00:22]} {[%emt 00:00:05]} Qa4
{[%clk 00:00:17]} {[%emt 00:00:14]} 42. Rc4 {[%clk 00:00:18]} {[%emt 00:00:14]}
Qb5 {[%clk 00:00:13]} {[%emt 00:00:13]} 43. a4 {[%clk 00:00:25]} {[%emt
00:00:04]} Qd7 {[%clk 00:00:20]} {[%emt 00:00:03]} 44. Rd4 {[%clk 00:00:25]}
{[%emt 00:00:09]} Qe6 {[%clk 00:00:29]} {[%emt 00:00:02]} 45. Rd5 {[%clk
00:00:29]} {[%emt 00:00:06]} Qf6 {[%clk 00:00:17]} {[%emt 00:00:22]} 46. Qd2
{[%clk 00:00:24]} {[%emt 00:00:15]} Qf4 {[%emt 00:00:15]} 47. Re1 {[%clk
00:00:28]} Qh4 {[%clk 00:00:23]} {[%emt 00:00:04]} 48. Nd4 {[%clk 00:00:29]}
{[%emt 00:00:10]} Rh8 {[%clk 00:00:18]} {[%emt 00:00:15]} 49. Nf3 {[%clk
00:00:38]} Qg3 {[%clk 00:00:12]} {[%emt 00:00:16]} 50. Rxg5 {[%clk 00:00:42]}
{[%emt 00:00:05]} Qc7 {[%clk 00:00:20]} {[%emt 00:00:03]} 51. Qd4+ {[%clk
00:00:46]} {[%emt 00:00:06]} f6 {[%clk 00:00:25]} {[%emt 00:00:04]} 52. Rd5
{[%clk 00:00:42]} {[%emt 00:00:14]} Qg3 {[%clk 00:00:17]} {[%emt 00:00:19]} 53.
Rd7+ {[%clk 00:00:49]} {[%emt 00:00:03]} Bf7 {[%clk 00:00:26]} {[%emt
00:00:01]} 54. Qd5 {[%clk 00:00:42]} {[%emt 00:00:17]} Rf8 {[%clk 00:00:16]}
{[%emt 00:00:20]} 55. e5 {[%clk 00:00:44]} {[%emt 00:00:08]} Kg8 {[%clk
00:00:14]} {[%emt 00:00:11]} 56. e6 {[%clk 00:00:49]} {[%emt 00:00:05]} 1-0